fUST/lending_fUST_20251013
["ID","MTS","AMOUNT","RATE_DAILY","PERIOD"]
[391085501,1760311839101,-360.0,0.00027307,2]
[391085503,1760311839110,-277.36,0.00027397,49]
[391085505,1760311839121,-382.0,0.00027397,49]
[391085507,1760311839130,-1692.8,0.000274,2]
[391085509,1760311839140,-460.0,0.00027855,2]
[391085511,1760311839153,-402.2877588,0.00028,10]
[391085513,1760311839163,-150.96,0.00028171,10]
[391085515,1760311839173,-168.28092314,0.0002818,2]
[391085517,1760311839182,-121214.955545,0.00028181,2]
[391085519,1760311839192,-153.0,0.00028191,2]
[391085521,1760311839201,-153.0,0.00028191,2]
[391085523,1760311839210,-153.0,0.00028191,2]
[391085526,1760311839220,-153.0,0.00028196,2]
[391085528,1760311839230,-153.0,0.00028196,2]
[391085530,1760311839239,-600.0,0.00028349,7]
[391085531,1760311839249,-11370.27105054,0.00028391,2]
[391085532,1760311839261,-560.0,0.00028403,2]
[391085533,1760311839270,-144416.68931261,0.00028491,2]
[391085534,1760311839295,-31575.40703191,0.00028491,2]
[391085561,1760311839933,-585.34,0.00023193,2]
[391085563,1760311839944,-780.46,0.00024977,2]
[391085565,1760311839954,-975.57,0.00026761,2]
[391085567,1760311839964,-66437.81474548,0.00028491,2]
[391085569,1760311839974,-720.0,0.00028541,30]
[391085571,1760311839983,-1170.68,0.00028545,2]
[391085574,1760311839994,-168.0,0.00028855,2]
[391085576,1760311840006,-173.11238745,0.00028951,2]
[391085577,1760311840015,-689.60285884,0.00028981,5]
[391085579,1760311840026,-168.0,0.00028986,2]
[391085582,1760311840035,-587.0,0.00029107,2]
[391085584,1760311840046,-600.0,0.00029171,7]
[391085585,1760311840056,-630.0,0.00029261,2]
[391085587,1760311840065,-2160.0,0.00029261,2]
[391085590,1760311840075,-411.0,0.00029261,2]
[391085592,1760311840084,-156.908318,0.000294,10]
[391085593,1760311840093,-156.908318,0.00029498,3]
[391085595,1760311840102,-1418.26506824,0.00029568,2]
[391085598,1760311840111,-186.424441,0.00029667,60]
[391085600,1760311840120,-499.58232019,0.00029884,2]
[391085601,1760311840129,-600.0,0.00029993,7]
[391085603,1760311840139,-204.453,0.0003,2]
[391085606,1760311840151,-4150.0,0.0003,120]
[391085608,1760311840161,-182.47968226,0.00030026,2]
[391085610,1760311840170,-1692.8,0.000301,2]
[391085611,1760311840179,-105334.69270083,0.0003011,30]
[391085613,1760311840189,-121214.955545,0.00030116,2]
[391085615,1760311840198,-500.0,0.00030126,30]
[391085617,1760311840208,-500.0,0.00030126,30]
[391085620,1760311840217,-500.0,0.00030126,30]
[391085622,1760311840226,-500.0,0.00030126,30]
[391085624,1760311840235,-500.0,0.00030126,30]
[391085626,1760311840244,-500.0,0.00030126,30]
[391085627,1760311840254,-500.0,0.00030126,30]
[391085629,1760311840263,-500.0,0.00030126,30]
[391085632,1760311840272,-500.0,0.00030126,30]
[391085633,1760311840281,-500.0,0.00030126,30]
[391085636,1760311840290,-500.0,0.00030126,30]
[391085638,1760311840300,-500.0,0.00030126,30]
[391085640,1760311840309,-7000.0,0.00030136,2]
[391085642,1760311840318,-7000.0,0.00030136,2]
[391085643,1760311840327,-7000.0,0.00030136,2]
[391085645,1760311840336,-7000.0,0.00030136,2]
[391085647,1760311840345,-3853.52892359,0.00030136,2]
[391085649,1760311840354,-500.0,0.00030136,21]
[391085651,1760311840364,-500.0,0.00030136,21]
[391085654,1760311840373,-500.0,0.00030136,7]
[391085656,1760311840382,-501.488583,0.00030136,7]
[391085658,1760311840391,-162.08,0.00030136,120]
[391085659,1760311840401,-500.00814321,0.00030136,21]
[391085662,1760311840410,-500.0,0.00030136,21]
[391085664,1760311840420,-191.06717955,0.00030136,21]
[391085666,1760311840429,-500.0,0.00030136,20]
[391085667,1760311840438,-500.0,0.00030136,20]
[391085669,1760311840447,-499.999999,0.00030136,21]
[391085671,1760311840457,-500.0,0.00030136,21]
[391085673,1760311840466,-353.80000017,0.00030136,21]
[391085675,1760311840475,-500.0,0.00030136,21]
[391085677,1760311840484,-500.0,0.00030136,21]
[391085679,1760311840493,-500.0,0.00030136,21]
[391085681,1760311840502,-500.0,0.00030136,21]
[391085683,1760311840511,-500.0,0.00030136,21]
[391085685,1760311840520,-500.0,0.00030136,21]
[391085687,1760311840531,-500.0,0.00030136,21]
[391085690,1760311840542,-500.0,0.00030136,21]
[391085692,1760311840553,-500.0,0.00030136,21]
[391085694,1760311840562,-500.0,0.00030136,21]
[391085696,1760311840571,-500.0,0.00030136,21]
[391085698,1760311840582,-500.0,0.00030136,21]
[391085700,1760311840592,-500.0,0.00030136,21]
[391085702,1760311840602,-500.0,0.00030136,21]
[391085703,1760311840612,-500.0,0.00030136,21]
[391085706,1760311840623,-500.0,0.00030136,21]
[391085707,1760311840635,-500.0,0.00030136,21]
[391085709,1760311840644,-500.0,0.00030136,21]
[391085712,1760311840659,-500.0,0.00030136,21]
[391085714,1760311840668,-500.0,0.00030136,21]
[391085716,1760311840678,-500.0,0.00030136,21]
[391085718,1760311840688,-500.0,0.00030136,21]
[391085720,1760311840698,-500.0,0.00030136,21]
[391085722,1760311840707,-500.0,0.00030136,21]
[391085724,1760311840716,-500.0,0.00030136,21]
[391085726,1760311840725,-500.0,0.00030136,21]
[391085728,1760311840736,-641.27144865,0.00030136,21]
[391085730,1760311840745,-500.0,0.00030136,7]
[391085732,1760311840756,-500.0,0.00030136,7]
[391085734,1760311840765,-500.0,0.00030136,7]
[391085736,1760311840774,-500.0,0.00030136,7]
[391085738,1760311840783,-645.91834033,0.00030136,7]
[391085740,1760311840792,-500.0,0.00030136,20]
[391085742,1760311840802,-500.0,0.00030136,14]
[391085744,1760311840811,-500.0,0.00030136,14]
[391085746,1760311840821,-500.0,0.00030136,14]
[391085748,1760311840830,-500.0,0.00030136,14]
[391085750,1760311840840,-500.0,0.00030136,14]
[391085752,1760311840849,-297.9,0.00030136,14]
[391085754,1760311840858,-501.79205893,0.00030136,21]
[391085756,1760311840867,-500.0,0.00030136,21]
[391085758,1760311840876,-585.13614732,0.00030136,21]
[391085760,1760311840885,-500.0,0.00030136,21]
[391085762,1760311840895,-500.0,0.00030136,21]
[391085764,1760311840906,-500.0,0.00030136,21]
[391085766,1760311840915,-182.47968223,0.00030136,2]
[391085768,1760311840924,-500.0,0.00030136,21]
[391085770,1760311840933,-505.7679205,0.00030136,21]
[391085772,1760311840942,-6281.32,0.00030136,21]
[391085774,1760311840951,-6281.32,0.00030136,21]
[391085776,1760311840961,-6281.32,0.00030136,21]
[391085778,1760311840970,-6281.32,0.00030136,21]
[391085780,1760311840979,-6281.32,0.00030136,21]
[391085782,1760311840988,-6281.32,0.00030136,21]
[391085784,1760311840998,-6281.32,0.00030136,21]
[391085786,1760311841007,-6281.32,0.00030136,21]
[391085788,1760311841023,-6281.32,0.00030136,21]
[391085790,1760311841032,-6281.32,0.00030136,21]
[391085792,1760311841043,-6281.32,0.00030136,21]
[391085794,1760311841052,-6281.32,0.00030136,21]
[391085796,1760311841061,-6281.32,0.00030136,21]
[391085798,1760311841071,-6281.32,0.00030136,21]
[391085800,1760311841080,-6281.32,0.00030136,21]
[391085802,1760311841090,-6281.32,0.00030136,21]
[391085804,1760311841099,-6281.32,0.00030136,21]
[391085806,1760311841109,-6281.32,0.00030136,21]
[391085808,1760311841119,-6281.32,0.00030136,21]
[391085810,1760311841129,-6281.32,0.00030136,21]
[391085812,1760311841138,-6281.32,0.00030136,21]
[391085814,1760311841147,-6281.32,0.00030136,21]
[391085816,1760311841159,-501.2198366,0.00030136,21]
[391085818,1760311841168,-6281.32,0.00030136,21]
[391085820,1760311841177,-6281.42758286,0.00030136,21]
[391085822,1760311841187,-500.0,0.00030136,12]
[391085824,1760311841196,-500.0,0.00030136,12]
[391085826,1760311841205,-500.0,0.00030136,12]
[391085828,1760311841214,-500.0,0.00030136,12]
[391085830,1760311841223,-164.95087295,0.00030136,12]
[391085832,1760311841233,-500.0,0.00030136,21]
[391085834,1760311841242,-1000.0,0.00030136,30]
[391085836,1760311841252,-1000.0,0.00030136,30]
[391085838,1760311841261,-1000.0,0.00030136,30]
[391085840,1760311841271,-1000.0,0.00030136,30]
[391085843,1760311841281,-1000.0,0.00030136,30]
[391085844,1760311841290,-1127.84693006,0.00030136,30]
[391085846,1760311841299,-500.0,0.00030136,21]
[391085849,1760311841309,-420.0,0.00030136,21]
[391085851,1760311841319,-500.0,0.00030136,21]
[391085852,1760311841328,-500.0,0.00030136,21]
[391085854,1760311841338,-500.0,0.00030136,21]
[391085856,1760311841348,-500.0,0.00030136,21]
[391085858,1760311841358,-255.48,0.00030136,21]
[391085860,1760311841367,-222.46611655,0.00030136,21]
[391085862,1760311841376,-591.67,0.00030136,21]
[391085864,1760311841386,-591.67,0.00030136,21]
[391085866,1760311841395,-591.67,0.00030136,21]
[391085868,1760311841407,-591.67,0.00030136,21]
[391085870,1760311841417,-591.67,0.00030136,21]
[391085872,1760311841427,-591.67,0.00030136,21]
[391085874,1760311841436,-591.67,0.00030136,21]
[391085876,1760311841445,-591.67,0.00030136,21]
[391085878,1760311841454,-591.67,0.00030136,21]
[391085880,1760311841464,-591.67,0.00030136,21]
[391085882,1760311841473,-500.0,0.00030136,21]
[391085884,1760311841482,-591.67,0.00030136,21]
[391085885,1760311841491,-591.67,0.00030136,21]
[391085886,1760311841500,-591.67,0.00030136,21]
[391085887,1760311841509,-591.67,0.00030136,21]
[391085888,1760311841518,-591.67,0.00030136,21]
[391085889,1760311841527,-591.67,0.00030136,21]
[391085890,1760311841537,-591.67,0.00030136,21]
[391085891,1760311841546,-591.67,0.00030136,21]
[391085892,1760311841555,-591.67,0.00030136,21]
[391085893,1760311841564,-591.67,0.00030136,21]
[391085894,1760311841574,-591.67,0.00030136,21]
[391085895,1760311841583,-591.67,0.00030136,21]
[391085896,1760311841593,-591.67,0.00030136,21]
[391085897,1760311841602,-591.69,0.00030136,21]
[391085898,1760311841612,-500.7970952,0.00030136,21]
[391085899,1760311841626,-346.83404773,0.00030136,21]
[391085900,1760311841635,-500.0,0.00030136,21]
[391085901,1760311841644,-500.0,0.00030136,21]
[391085902,1760311841654,-548.09263288,0.00030136,21]
[391085903,1760311841665,-500.0,0.00030136,21]
[391085904,1760311841675,-500.0,0.00030136,21]
[391085905,1760311841683,-500.0,0.00030136,21]
[391085906,1760311841693,-500.0,0.00030136,21]
[391085907,1760311841702,-373.88,0.00030136,21]
[391085908,1760311841711,-500.0,0.00030136,21]
[391085909,1760311841720,-500.0,0.00030136,21]
[391085910,1760311841729,-500.0,0.00030136,21]
[391085912,1760311841738,-500.0,0.00030136,21]
[391085914,1760311841747,-500.0,0.00030136,21]
[391085916,1760311841756,-479.11394322,0.00030136,21]
[391085918,1760311841766,-500.0,0.00030136,21]
[391085920,1760311841775,-28657.87693564,0.00030154,3]
[391085922,1760311841784,-500.0,0.00030173,5]
[391085924,1760311841794,-4547.09,0.000302,2]
[391085926,1760311841804,-182.47968223,0.00030246,2]
[391085928,1760311841813,-162.08,0.00030273,120]
[391085930,1760311841822,-168.0,0.00030291,2]
[391085932,1760311841831,-151.0,0.000303,11]
[391085934,1760311841841,-406458.2097,0.00030356,7]
[391085936,1760311841850,-182.47968223,0.00030356,2]
[391085938,1760311841860,-3673.70356842,0.00030356,2]
[391085940,1760311841869,-500.0,0.00030373,5]
[391085942,1760311841878,-967.0,0.000304,3]
[391085944,1760311841887,-162.08,0.0003041,120]
[391085946,1760311841896,-200.0,0.00030452,30]
[391085948,1760311841908,-135919.76997646,0.00030456,20]
[391086019,1760311844004,-415.782,0.00026261,2]
[391086020,1760311844014,-56.81800075,0.00029261,2]
[391086039,1760311998498,151.61,0.00020789,2]
[391086060,1760312515718,150.0,0.00020807,2]
[391086061,1760312787047,745.763265,0.00013699,2]
[391086062,1760312787249,745.763265,0.00020187,2]
[391086100,1760313032156,-150.0,0.00022677,2]
[391086102,1760313032165,-191.03860107,0.00022677,2]
[391086377,1760313038401,-1008.96139893,0.00022677,2]
[391086379,1760313038410,-300.0,0.00022677,2]
[391086381,1760313038420,-170.0,0.00022678,2]
[391086383,1760313038429,-300.0,0.00022678,2]
[391086385,1760313038440,-300.0,0.00022678,2]
[391086387,1760313038450,-1482.44409791,0.00022679,2]
[391086932,1760313307503,500.0,0.00027397,120]
[391086935,1760313509406,160.0,0.00020971,2]
[391086936,1760313549008,6187.46347,0.00020971,2]
[391086937,1760313549031,434.77653,0.00020971,2]
[391086938,1760313633184,4496.05535499,0.00020971,2]
[391086939,1760313648834,2385.04300227,0.00020971,2]
[391086940,1760313777477,2287.77851225,0.00027397,120]
[391086941,1760313867067,2684.13511274,0.00020971,2]
[391086942,1760313867088,2315.86488726,0.00020971,2]
[391086943,1760313980260,4612.76,0.00020971,2]
[391086948,1760314232394,-186.21822421,0.00021153,2]
[391086949,1760314232403,-150.0,0.00021153,2]
[391086950,1760314232412,-166.7203198,0.000212,2]
[391086951,1760314232421,-418.80804016,0.00021253,2]
[391087061,1760314238401,-81.19195984,0.00021253,2]
[391087063,1760314238411,-500.0,0.00021253,2]
[391087065,1760314238421,-200.0,0.00021253,2]
[391087068,1760314238430,-1200.0,0.00021675,2]
[391087070,1760314238439,-300.0,0.00021676,2]
[391087072,1760314238447,-300.0,0.00021676,2]
[391087074,1760314238455,-7040.93866848,0.00021677,2]
[391087076,1760314238465,-300.0,0.00021677,20]
[391087078,1760314238482,-300.0,0.00021677,20]
[391087080,1760314238490,-300.0,0.00021677,20]
[391087082,1760314238500,-300.0,0.00021677,20]
[391087084,1760314238508,-300.0,0.00021677,20]
[391087086,1760314238517,-300.0,0.00021677,20]
[391087088,1760314238526,-300.0,0.00021677,20]
[391087090,1760314238534,-300.0,0.00021677,20]
[391087092,1760314238545,-300.0,0.00021677,20]
[391087095,1760314238554,-300.0,0.00021677,20]
[391087097,1760314238563,-300.0,0.00021677,20]
[391087099,1760314238572,-300.0,0.00021677,20]
[391087101,1760314238580,-300.0,0.00021677,20]
[391087103,1760314238589,-300.0,0.00021677,20]
[391087105,1760314238597,-300.0,0.00021677,20]
[391087107,1760314238605,-172.5,0.00021753,2]
[391087109,1760314238613,-666.0,0.00021945,2]
[391087110,1760314238620,-600.0,0.0002211,20]
[391087112,1760314238627,-195.0,0.00022353,2]
[391087114,1760314238635,-7670.13053062,0.00022679,2]
[391087117,1760314238649,-3487.80015979,0.00022679,2]
[391087119,1760314238658,-1133.11351804,0.00022773,2]
[391087121,1760314238667,-217.5,0.00022953,2]
[391087123,1760314238676,-164.0,0.00023,7]
[391087125,1760314238685,-240.0,0.00023553,2]
[391087127,1760314238695,-287.0,0.00023562,2]
[391087129,1760314238705,-420.0,0.00023562,2]
[391087131,1760314238714,-1680.0,0.00023672,2]
[391087133,1760314238724,-160.0,0.00023866,2]
[391087135,1760314238733,-160.0,0.00023893,2]
[391087137,1760314238743,-204.98640756,0.000239,2]
[391087139,1760314238754,-2088.78532203,0.00023903,2]
[391087141,1760314238763,-204.98640756,0.000241,2]
[391087143,1760314238772,-262.5,0.00024153,2]
[391087145,1760314238781,-204.98640756,0.000243,2]
[391087146,1760314238790,-720.0,0.0002432,20]
[391087148,1760314238799,-160.0,0.0002435,2]
[391087151,1760314238810,-309.10446678,0.00024399,2]
[391087153,1760314238819,-204.98640756,0.000246,2]
[391087154,1760314238828,-285.0,0.00024753,2]
[391087156,1760314238837,-204.98640756,0.000248,2]
[391087158,1760314238846,-260.0,0.00024898,2]
[391087160,1760314238855,-217.197,0.00024999,8]
[391087162,1760314238864,-307.5,0.00025353,2]
[391087164,1760314238873,-360.0,0.00025446,2]
[391087166,1760314238883,-587.0,0.00025613,2]
[391087168,1760314238892,-273.28522803,0.00025671,17]
[391087170,1760314238901,-872.0,0.00025854,2]
[391087172,1760314238910,-191.958219,0.00025862,2]
[391087174,1760314238919,-330.0,0.00025953,2]
[391087176,1760314238928,-460.0,0.00025994,2]
[391087178,1760314238937,-160.0,0.00026172,2]
[391087180,1760314238946,-160.0,0.00026223,2]
[391087182,1760314238956,-402.2877588,0.00026223,2]
[391087184,1760314238965,-981.0,0.00026384,2]
[391087186,1760314238974,-630.0,0.00026384,2]
[391087188,1760314238984,-2160.0,0.00026384,2]
[391087190,1760314238993,-8010.0,0.00026384,2]
[391087192,1760314239007,-560.0,0.00026542,2]
[391087194,1760314239017,-352.5,0.00026553,2]
[391087196,1760314239027,-745.763265,0.00026676,2]
[391087198,1760314239037,-864.0,0.00026753,30]
[391087200,1760314239046,-150.0,0.00026767,2]
[391087201,1760314239061,-620.0,0.0002709,2]
[391087203,1760314239070,-375.0,0.00027153,2]
[391087205,1760314239079,-18798.238271,0.0002719,2]
[391087207,1760314239087,-150.96,0.0002719,10]
[391087209,1760314239096,-754.84,0.0002719,10]
[391087211,1760314239105,-41846.0,0.000272,15]
[391087213,1760314239114,-520.0,0.000272,15]
[391087215,1760314239124,-11370.27105054,0.000272,2]
[391087217,1760314239133,-600.0,0.00027253,2]
[391087219,1760314239142,-302.84859387,0.0002726,18]
[391087220,1760314239151,-240.40131878,0.00027289,2]
[391087221,1760314239160,-18798.238271,0.0002729,2]
[391087222,1760314239170,-49222.0,0.000273,15]
[391087223,1760314239179,-26357.24,0.000273,7]
[391087224,1760314239188,-154.70417693,0.00027397,2]
[391087225,1760314239198,-1711.6,0.000274,2]
[391087226,1760314239207,-397.5,0.00027753,2]
[391087227,1760314239216,-823.0,0.00027842,2]
[391087228,1760314239225,-153.0,0.00028127,2]
[391087229,1760314239234,-153.0,0.00028127,2]
[391087230,1760314239244,-153.0,0.00028127,2]
[391087231,1760314239255,-153.0,0.00028127,2]
[391087232,1760314239265,-153.0,0.00028127,2]
[391087233,1760314239273,-153.0,0.00028127,2]
[391087234,1760314239282,-153.0,0.00028127,2]
[391087235,1760314239291,-153.0,0.00028127,2]
[391087236,1760314239299,-600.0,0.00028349,7]
[391087237,1760314239310,-420.0,0.00028353,2]
[391087238,1760314239323,-162.9132687,0.00028383,30]
[391087239,1760314239332,-644.651486,0.00028383,30]
[391087240,1760314239342,-174.31,0.0002878,2]
[391087241,1760314239351,-976.43201705,0.00028937,5]
[391087242,1760314239360,-442.5,0.00028953,2]
[391087243,1760314239370,-1016.76,0.00029,2]
[391087244,1760314239379,-168.0,0.00029069,2]
[391087245,1760314239390,-37596.476542,0.00029151,2]
[391087246,1760314239400,-600.0,0.00029171,7]
[391087247,1760314239409,-229.58034146,0.00029173,5]
[391087248,1760314239419,-500.0,0.00029173,5]
[391087249,1760314239428,-500.0,0.00029173,5]
[391087250,1760314239438,-500.0,0.00029173,2]
[391087251,1760314239447,-1016.76,0.00029174,2]
[391087252,1760314239456,-57329.93392102,0.00029174,2]
[391087462,1760314380907,183.82,0.00019811,2]
[391087463,1760314461695,181.48,0.00020855,2]
[391087465,1760314705845,2706.08511274,0.00020971,2]
[391087466,1760314705871,2293.91488726,0.00020971,2]
[391087467,1760314720873,5018.28,0.00020971,2]
[391087469,1760314924018,181.39,0.00019885,2]
[391087471,1760314982592,302.84859387,0.00020866,6]
[391087477,1760315268203,689.82542363,0.00018,2]
[391087483,1760315339769,1513.75109524,0.0002,2]
[391087484,1760315339791,2486.24890476,0.0002,2]
[391087525,1760315432630,-1540.28610153,0.00023286,2]
[391087526,1760315432643,-455.36,0.00023286,2]
[391087527,1760315432741,-2804.35389847,0.00023286,2]
[391087528,1760315432751,-116.24978557,0.00023759,2]
[391087529,1760315432765,-33.75021443,0.00023759,2]
[391087530,1760315432775,-1200.0,0.00023998,2]
[391087531,1760315432785,-28.59297536,0.00023999,2]
[391087648,1760315438445,-971.10711461,0.00023999,2]
[391087649,1760315438455,-300.0,0.00023999,2]
[391087650,1760315438465,-14291.68201797,0.00024,2]
[391087651,1760315438480,-455.18249544,0.00024,2]
[391087652,1760315438492,-1603.22358985,0.00024,2]
[391087653,1760315438503,-41583.91189674,0.00024,2]
[391087654,1760315438513,-238.0,0.00024,3]
[391087655,1760315438525,-160.0,0.00024259,2]
[391087656,1760315438535,-160.0,0.00024259,2]
[391087657,1760315438544,-172.5,0.00024359,2]
[391087658,1760315438555,-300.0,0.00024479,20]
[391087659,1760315438564,-300.0,0.00024479,20]
[391087660,1760315438575,-300.0,0.00024479,20]
[391087661,1760315438590,-300.0,0.00024479,20]
[391087662,1760315438606,-300.0,0.00024479,20]
[391087663,1760315438616,-300.0,0.00024479,20]
[391087664,1760315438627,-300.0,0.00024479,20]
[391087666,1760315438637,-300.0,0.00024479,20]
[391087667,1760315438648,-300.0,0.00024479,20]
[391087668,1760315438658,-300.0,0.00024479,20]
[391087669,1760315438672,-300.0,0.00024479,20]
[391087670,1760315438682,-300.0,0.00024479,20]
[391087671,1760315438691,-300.0,0.00024479,20]
[391087672,1760315438702,-300.0,0.00024479,20]
[391087673,1760315438713,-300.0,0.00024479,20]
[391087674,1760315438723,-600.0,0.00024479,20]
[391087675,1760315438732,-9758.38450021,0.00024937,2]
[391087676,1760315438742,-195.0,0.00024959,2]
[391087677,1760315438753,-173.758,0.00024999,8]
[391087678,1760315438763,-217.5,0.00025559,2]
[391087679,1760315438774,-396.767426,0.0002578,2]
[391087680,1760315438784,-420.0,0.00026026,2]
[391087681,1760315438794,-240.0,0.00026159,2]
[391087682,1760315438804,-517.74688544,0.00026654,2]
[391087683,1760315438814,-262.5,0.00026759,2]
[391087684,1760315438828,-720.0,0.00026927,30]
[391087685,1760315438838,-821.88777051,0.00027157,2]
[391087686,1760315438848,-1084.877,0.00027204,2]
[391087687,1760315438861,-600.0,0.00027253,2]
[391087688,1760315438872,-285.0,0.00027359,2]
[391087689,1760315439043,-1000.0,0.00027433,30]
[391087690,1760315439055,-333.39794694,0.00027478,2]
[391087691,1760315439065,-499.99999901,0.000275,10]
[391087692,1760315439075,-299.32315178,0.00027716,2]
[391087693,1760315439085,-153.0,0.00027812,2]
[391087694,1760315439095,-153.0,0.00027812,2]
[391087695,1760315439105,-153.0,0.00027812,2]
[391087696,1760315439114,-153.0,0.00027812,2]
[391087697,1760315439124,-153.0,0.00027812,2]
[391087698,1760315439133,-153.0,0.00027813,2]
[391087699,1760315439143,-153.0,0.00027813,2]
[391087700,1760315439152,-151.0,0.00027822,2]
[391087701,1760315439162,-151.0,0.00027822,2]
[391087702,1760315439171,-151.0,0.00027822,2]
[391087703,1760315439180,-151.0,0.00027822,2]
[391087704,1760315439190,-151.0,0.00027833,2]
[391087705,1760315439200,-402.2877588,0.00027857,2]
[391087706,1760315439209,-151.0,0.00027877,2]
[391087707,1760315439218,-151.0,0.00027877,2]
[391087708,1760315439228,-151.0,0.00027888,2]
[391087709,1760315439237,-200.48772822,0.00027913,5]
[391087710,1760315439247,-198.0,0.00027943,2]
[391087711,1760315439257,-307.5,0.00027959,2]
[391087712,1760315439266,-2011.26,0.00028,2]
[391087713,1760315439281,-1000.0,0.00028,2]
[391087714,1760315439304,-587.0,0.00028223,2]
[391087715,1760315439313,-600.0,0.00028349,7]
[391087716,1760315439323,-330.0,0.00028559,2]
[391087717,1760315439333,-392.005774,0.0002863,30]
[391087718,1760315439343,-392.005774,0.0002863,30]
[391087719,1760315439353,-154.70417693,0.00028775,2]
[391087720,1760315439362,-240.40131878,0.00028775,2]
[391087721,1760315439372,-92563.02305631,0.00028776,120]
[391087722,1760315439381,-1052.04852074,0.00028776,120]
[391087723,1760315439390,-179.08,0.00028807,2]
[391087724,1760315439399,-11370.27105054,0.0002888,2]
[391087725,1760315439408,-229.9513199,0.0002889,2]
[391087726,1760315439417,-976.43201705,0.000289,5]
[391087727,1760315439426,-49353.9869281,0.0002898,2]
[391087728,1760315439437,-5653.0,0.0002898,2]
[391087729,1760315439449,-75533.0136249,0.0002898,2]
[391087730,1760315439458,-36073.7089091,0.0002899,2]
[391087731,1760315439468,-1016.76,0.00029,2]
[391087732,1760315439478,-588.89347288,0.0002909,2]
[391087733,1760315439489,-18305.40826848,0.0002911,2]
[391087734,1760315439498,-352.5,0.00029159,2]
[391087735,1760315439507,-600.0,0.00029171,7]
[391087736,1760315439516,-160.0,0.00029173,3]
[391087737,1760315439531,-4597.62,0.000292,2]
[391087738,1760315439540,-1711.6,0.000292,2]
[391087739,1760315439549,-168.0,0.00029215,2]
[391087740,1760315439559,-588.89347286,0.00029406,2]
[391087741,1760315439570,-74903.72323913,0.00029434,2]
[391087742,1760315439583,-7583.32442373,0.00029434,2]
[391087743,1760315439595,-509.32012587,0.00029434,2]
[391087744,1760315439607,-1284.52427954,0.00029434,2]
[391087745,1760315439619,-46259.10848473,0.00029434,2]
[391087746,1760315439629,-1063.69880118,0.00029445,2]
[391087747,1760315439638,-266.40233082,0.000296,120]
[391087748,1760315439654,-1822.38299121,0.000296,120]
[391087749,1760315439674,-864.0,0.0002962,30]
[391087750,1760315439687,-229.95131989,0.00029624,2]
[391087751,1760315439697,-500.0,0.00029673,5]
[391087752,1760315439706,-500.0,0.00029673,2]
[391087753,1760315439718,-500.0,0.00029673,5]
[391087754,1760315439729,-500.75452885,0.00029673,5]
[391087755,1760315439740,-215.12328,0.0002969,2]
[391087756,1760315439750,-215.12328,0.0002969,2]
[391087757,1760315439759,-215.12328,0.0002969,2]
[391087758,1760315439772,-215.12328,0.0002969,2]
[391087759,1760315439782,-18088.61912447,0.0002969,2]
[391087760,1760315439794,-88054.52771315,0.0002969,2]
[391087761,1760315439805,-1077.26022773,0.0002969,2]
[391087762,1760315439817,-4342.956325,0.0002969,2]
[391087763,1760315439828,-2814.70574874,0.0002969,2]
[391087764,1760315439840,-5448.51305132,0.0002969,2]